Workbook

Sheet NSU
B1: Leena Rantatorikka | E1: 21.8.1979
B2: SUPERPESIS | E2: Runkosarja | I2: Kärkilyönnit (KL), pesänvälit | P2: Ylempi loppusarja | U2: Alempi loppusarja | Z2: Arvo-ottelut ja mitalit | AF2: Runkosarjan jälkeen
B3: Vuosi | C3: Sija | D3: Seura | E3: OTT | F3: KUN | G3: LÖI | H3: TOI | I3: KL | J3: 0 > 1 | K3: 1 > 2 | L3: 2 > 3 | M3: 3 > k | N3: KL-% | P3: OTT | Q3: KUN | R3: LÖI | S3: TOI | T3: KL | U3: OTT | V3: KUN | W3: LÖI | X3: TOI | Y3: KL | Z3: IL | AA3: LL | AB3: Halli | AC3: K | AD3: H | AE3: P
B4: 1993 | C4: 10. | D4: Tahko | E4: 1 | F4: 0 | G4: 0 | H4: 1 | I4: 2 | J4: 0 | K4: 2 | L4: 0 | M4: =SUM(F4+G4) -> 0 | N4: 66.7 % | O4: =PRODUCT(I4/N4) -> 2.99850075
B5: 1994 | C5: 9. | D5: Tahko | E5: 6 | F5: 0 | G5: 3 | H5: 1 | I5: 13 | J5: 5 | K5: 3 | L5: 2 | M5: 3 | N5: 65.0 % | O5: =PRODUCT(I5/N5) -> 20
B6: 1995 | C6: 8. | D6: Roihu | E6: 17 | F6: 0 | G6: 13 | H6: 2 | I6: 43 | J6: 4 | K6: 11 | L6: 15 | M6: 13 | N6: 37.4 % | O6: =PRODUCT(I6/N6) -> 114.973262 | AF6: play off
B7: 1996 | C7: 8. | D7: Roihu | E7: 24 | F7: 1 | G7: 18 | H7: 7 | I7: 76 | J7: 11 | K7: 21 | L7: 25 | M7: 19 | N7: 51.0 % | O7: =PRODUCT(I7/N7) -> 149.0196078 | Z7: 1 | AF7: play off
B8: 1997 | C8: 10. | D8: Roihu | E8: 17 | F8: 0 | G8: 9 | H8: 0 | I8: 33 | J8: 3 | K8: 13 | L8: 8 | M8: =PRODUCT(F8+G8) -> 9 | N8: 46.5 % | O8: =PRODUCT(I8/N8) -> 70.96774194 | AF8: superpesiskarsinta
B9: Yhteensä | E9: =SUM(E4:E8) -> 65 | F9: 1 | G9: 43 | H9: 11 | I9: 167 | J9: 23 | K9: 50 | L9: 50 | M9: 44 | N9: =PRODUCT(I9/O9) -> 46.7 % | O9: =SUM(O4:O8) -> 357.9591126 | P9: 0 | Q9: 0 | R9: 0 | S9: 0 | T9: 0 | U9: 0 | V9: 0 | W9: 0 | X9: 0 | Y9: 0 | Z9: 1 | AA9: 0 | AB9: 0 | AC9: 0 | AD9: 0 | AE9: 0
B10: Pesispörssi | D10: =SUM(F9:H9)+((I9-F9-G9)/3)+(E9/3)+(Z9*25)+(AA9*25)+(AB9*10)+(AC9*25)+(AD9*20)+(AE9*15) -> 142.7
B12: URA SUPERISSA | E12: OTT | F12: KUN | G12: LÖI | H12: TOI | I12: KL | K12: ka/L | L12: ka/T | M12: ka/KL | N12: K - % | P12: ENSIMMÄISET
B13: Runkosarja | E13: =PRODUCT(E9) -> 65 | F13: =PRODUCT(F9) -> 1 | G13: =PRODUCT(G9) -> 43 | H13: =PRODUCT(H9) -> 11 | I13: =PRODUCT(I9) -> 167 | K13: =PRODUCT((F13+G13)/E13) -> 0.68 | L13: =PRODUCT(H13/E13) -> 0.17 | M13: =PRODUCT(I13/E13) -> 2.57 | N13: =PRODUCT(N9) -> 46.7 % | O13: =PRODUCT(O9) -> 357.9591126 | P13: Ottelu | S13: 06.06. 1993 Tahko - Pesäkarhut 6-16 | AD13: 1. ottelu | AF13: 13 v 9 kk 16 pv
B14: Ylempi loppusarja | P14: Lyöty juoksu | S14: 29.06. 1994 Tahko - Turku-Pesis 2-0 (9-3, 9-0) | AD14: 4. ottelu | AF14: 14 v 10 kk 8 pv
B15: Alempi loppusarja | P15: Tuotu juoksu | S15: 06.06. 1993 Tahko - Pesäkarhut 6-16 | AD15: 1. ottelu | AF15: 14 v 9 kk 16 pv
B16: KAIKKI | E16: =SUM(E13:E15) -> 65 | F16: =SUM(F13:F15) -> 1 | G16: =SUM(G13:G15) -> 43 | H16: =SUM(H13:H15) -> 11 | I16: =SUM(I13:I15) -> 167 | K16: =PRODUCT((F16+G16)/E16) -> 0.68 | L16: =PRODUCT(H16/E16) -> 0.17 | M16: =PRODUCT(I16/E16) -> 2.57 | N16: =PRODUCT(I16/O16) -> 46.7 % | O16: =SUM(O13:O15) -> 357.9591126 | P16: Kunnari | S16: 04.08. 1996 Roihu - Lippo 2-1 (0-7, 5-4, 1-0) | AF16: 17 v 11 kk 14 pv
B18: Seurat | D18: Tahko = Hyvinkään Tahko (1915)
D19: Roihu (1957)

Sheet Arvo-ottelut
B1: ITÄ - LÄNSI - KORTTI
B2: Leena Rantatorikka | C2: 21.8.1979
B3: NAISET | C3: Itä - Länsi, tulos | D3: Joukkue | E3: Seura | G3: V | H3: T | I3: H | J3: Up. | K3: Lj. | L3: Palk. | M3: O | N3: K | O3: L | P3: T | Q3: KL | R3: 1 | S3: 2 | T3: 3 | U3: k | V3: KL-% | W3: Pelinjohtaja | X3: Yleisöä
B4: 13.07. 1996 Kitee | C4: 2-1 (10-3, 3-7, 2-0) | D4: Itä | E4: Roihu | G4: 1 | K4: jok | M4: 1 | O4: 1 | Q4: 1/5 | R4: 0/1 | T4: 0/2 | U4: 1/2 | V4: 20.0 % | W4: Jussi Viljanen | X4: 6113
B5: Ikä ensimmäisessä ottelussa | C5: 26 v 10 kk 22 pv
B7: B-TYTÖT | C7: Itä - Länsi, tulos | D7: Joukkue | E7: Seura | G7: V | H7: T | I7: H | J7: Up. | K7: Lj. | L7: Palk. | M7: O | N7: K | O7: L | P7: T | Q7: KL | R7: 1 | S7: 2 | T7: 3 | U7: k | V7: KL-% | W7: Pelinjohtaja | X7: Yleisöä
B8: 16.07. 1995 Alajärvi | C8: 0-2 (2-3, 1-3) | D8: Itä | E8: Roihu | I8: 1 | J8: L | K8: 4 | L8: II p | M8: 1 | Q8: 2/6 | R8: 0/1 | S8: 2/3 | T8: 0/1 | U8: 0/1 | V8: 33.3 % | W8: Martti Rahkonen | X8: 3643
B9: 14.07. 1996 Kitee | C9: 0-2 (1-2, 4-6) | D9: Itä | E9: Roihu | I9: 1 | J9: L | K9: 4 | L9: II p | M9: 1 | O9: 2 | Q9: 5/7 | R9: 1/2 | S9: 1/1 | T9: 1/2 | U9: 2/2 | V9: 71.4 % | W9: Markku Koso | X9: 4304
B10: 17.08. 1997 Hyvinkää | C10: 0-2 (0-6, 6-7) | D10: Itä | E10: Roihu | I10: 1 | J10: 3v | K10: 5 | M10: 1 | Q10: 1/3 | T10: 1/2 | U10: 0/1 | V10: 33.3 % | W10: Pertti Laakso | X10: 2652
B11: Yhteensä | I11: 3 | M11: 3 | O11: 2 | Q11: 8/16 | R11: 1/3 | S11: 3/4 | T11: 2/5 | U11: 2/4 | V11: 50.0 %
